fUSD/lending_fUSD_20240412
["ID","MTS","AMOUNT","RATE_DAILY","PERIOD"]
[322224097,1712892645202,-167.30748,0.00027671,7]
[322224098,1712892645212,-500.0,0.00027671,2]
[322224099,1712892645221,-162.94,0.00027671,2]
[322224100,1712892645230,-167.30748,0.00027671,7]
[322224101,1712892645239,-167.30748,0.00027671,7]
[322224102,1712892645248,-167.30748,0.00027671,7]
[322224103,1712892645257,-458.32101254,0.00027671,2]
[322224104,1712892645268,-500.0,0.00027671,2]
[322224105,1712892645277,-500.0,0.00027671,2]
[322224106,1712892645286,-500.0,0.00027671,2]
[322224107,1712892645295,-190.93673393,0.00027671,2]
[322224108,1712892645305,-500.0,0.00027671,2]
[322224109,1712892645314,-221.66983973,0.00027671,2]
[322224110,1712892645325,-500.0,0.00027671,2]
[322224111,1712892645339,-500.0,0.00027671,2]
[322224112,1712892645349,-602.6,0.00027671,2]
[322224113,1712892645360,-500.0,0.00027671,2]
[322224114,1712892645371,-249.34248027,0.00027671,2]
[322224115,1712892645380,-500.0,0.00027671,2]
[322224116,1712892645391,-500.0,0.00027671,2]
[322224117,1712892645402,-500.0,0.00027671,2]
[322224118,1712892645413,-500.0,0.00027671,2]
[322224119,1712892645423,-500.0,0.00027671,2]
[322224120,1712892645433,-418.78949762,0.00027671,2]
[322224121,1712892645445,-215.2727407,0.00027671,2]
[322224122,1712892645454,-500.0,0.00027671,2]
[322224123,1712892645464,-633.68,0.00027671,2]
[322224124,1712892645474,-500.0,0.00027671,2]
[322224125,1712892645485,-500.0,0.00027671,2]
[322224126,1712892645495,-500.0,0.00027671,2]
[322224127,1712892645504,-500.0,0.00027671,2]
[322224128,1712892645514,-544.60426313,0.00027671,2]
[322224129,1712892645525,-500.0,0.00027671,2]
[322224130,1712892645535,-500.0,0.00027671,2]
[322224131,1712892645544,-500.0,0.00027671,2]
[322224132,1712892645554,-1745.75,0.00027671,2]
[322224133,1712892645563,-500.0,0.00027671,2]
[322224135,1712892645573,-500.0,0.00027671,2]
[322224137,1712892645582,-500.0,0.00027671,2]
[322224139,1712892645591,-601.44236765,0.00027671,2]
[322224141,1712892645600,-500.0,0.00027671,2]
[322224143,1712892645609,-500.0,0.00027671,2]
[322224145,1712892645618,-500.0,0.00027671,2]
[322224147,1712892645627,-500.0,0.00027671,2]
[322224149,1712892645637,-500.0,0.00027671,2]
[322224151,1712892645646,-529.107106,0.00027671,2]
[322224153,1712892645655,-500.0,0.00027671,2]
[322224155,1712892645665,-500.0,0.00027671,2]
[322224157,1712892645674,-260.64018723,0.00027671,2]
[322224159,1712892645683,-500.0,0.00027671,2]
[322224161,1712892645692,-500.0,0.00027671,2]
[322224163,1712892645701,-500.0,0.00027671,2]
[322224165,1712892645711,-500.0,0.00027671,2]
[322224167,1712892645720,-500.0,0.00027671,2]
[322224169,1712892645730,-500.0,0.00027671,2]
[322224171,1712892645739,-500.0,0.00027671,2]
[322224173,1712892645748,-500.0,0.00027671,2]
[322224176,1712892645757,-500.0,0.00027671,2]
[322224177,1712892645767,-500.0,0.00027671,2]
[322224178,1712892645776,-500.0,0.00027671,2]
[322224179,1712892645786,-500.0,0.00027671,2]
[322224180,1712892645795,-500.0,0.00027671,2]
[322224181,1712892645804,-500.0,0.00027671,2]
[322224182,1712892645813,-500.0,0.00027671,2]
[322224183,1712892645822,-500.0,0.00027671,2]
[322224184,1712892645832,-564.06,0.00027671,2]
[322224185,1712892645841,-150.0,0.00027671,2]
[322224186,1712892645850,-522.68086506,0.00027671,2]
[322224187,1712892645859,-500.0,0.00027671,2]
[322224188,1712892645868,-500.0,0.00027671,2]
[322224189,1712892645877,-500.0,0.00027671,2]
[322224190,1712892645886,-550.63677238,0.00027671,2]
[322224191,1712892645895,-500.0,0.00027671,2]
[322224192,1712892645904,-500.0,0.00027671,2]
[322224193,1712892645914,-500.0,0.00027671,2]
[322224194,1712892645923,-500.0,0.00027671,2]
[322224195,1712892645933,-1022.99,0.00027671,2]
[322224196,1712892645942,-500.0,0.00027671,2]
[322224197,1712892645951,-500.0,0.00027671,2]
[322224198,1712892645960,-500.0,0.00027671,2]
[322224199,1712892645969,-500.0,0.00027671,2]
[322224200,1712892645979,-500.0,0.00027671,2]
[322224201,1712892645988,-500.0,0.00027671,2]
[322224202,1712892645997,-500.0,0.00027671,2]
[322224203,1712892646006,-1427.79,0.00027671,2]
[322224204,1712892646016,-500.0,0.00027671,2]
[322224205,1712892646026,-454.25523117,0.00027671,2]
[322224206,1712892646035,-247.0897626,0.00027671,2]
[322224207,1712892646045,-460.78511822,0.00027671,2]
[322224208,1712892646054,-500.0,0.00027671,2]
[322224209,1712892646063,-500.0,0.00027671,2]
[322224210,1712892646073,-500.0,0.00027671,2]
[322224211,1712892646084,-500.0,0.00027671,2]
[322224212,1712892646093,-166.65,0.00027671,2]
[322224213,1712892646102,-500.0,0.00027671,2]
[322224214,1712892646111,-500.0,0.00027671,2]
[322224215,1712892646122,-500.0,0.00027671,2]
[322224216,1712892646132,-479.18317805,0.00027671,2]
[322224217,1712892646142,-500.0,0.00027671,2]
[322224218,1712892646151,-566.53854065,0.00027671,2]
[322224219,1712892646161,-500.0,0.00027671,2]
[322224220,1712892646171,-500.0,0.00027671,2]
[322224221,1712892646181,-500.0,0.00027671,2]
[322224222,1712892646192,-500.0,0.00027671,2]
[322224223,1712892646204,-500.0,0.00027671,2]
[322224224,1712892646214,-500.0,0.00027671,2]
[322224225,1712892646223,-500.0,0.00027671,2]
[322224226,1712892646233,-500.0,0.00027671,2]
[322224227,1712892646242,-500.0,0.00027671,2]
[322224228,1712892646253,-712.25,0.00027671,2]
[322224229,1712892646262,-500.0,0.00027671,2]
[322224230,1712892646272,-699.3,0.00027671,2]
[322224231,1712892646281,-500.0,0.00027671,2]
[322224233,1712892646291,-1324.5,0.00027671,2]
[322224235,1712892646300,-500.0,0.00027671,2]
[322224236,1712892646309,-500.0,0.00027671,2]
[322224237,1712892646319,-500.0,0.00027671,2]
[322224238,1712892646330,-3621.42,0.00027671,2]
[322224239,1712892646341,-500.0,0.00027671,2]
[322224240,1712892646350,-500.0,0.00027671,2]
[322224241,1712892646360,-500.0,0.00027671,2]
[322224242,1712892646370,-546.72,0.00027671,2]
[322224243,1712892646379,-500.0,0.00027671,2]
[322224244,1712892646388,-500.0,0.00027671,2]
[322224245,1712892646397,-500.0,0.00027671,2]
[322224246,1712892646408,-500.0,0.00027671,2]
[322224247,1712892646417,-500.0,0.00027671,2]
[322224248,1712892646427,-500.0,0.00027671,2]
[322224249,1712892646438,-500.0,0.00027671,2]
[322224250,1712892646448,-316.4832862,0.00027671,2]
[322224251,1712892646458,-500.0,0.00027671,2]
[322224252,1712892646467,-500.0,0.00027671,2]
[322224253,1712892646476,-500.0,0.00027671,2]
[322224254,1712892646486,-500.0,0.00027671,2]
[322224256,1712892646496,-500.0,0.00027671,2]
[322224257,1712892646507,-500.0,0.00027671,2]
[322224258,1712892646516,-586.46557344,0.00027671,2]
[322224259,1712892646528,-500.0,0.00027671,2]
[322224260,1712892646537,-500.0,0.00027671,2]
[322224261,1712892646548,-293.90303789,0.00027671,2]
[322224262,1712892646559,-866.78,0.00027671,2]
[322224263,1712892646570,-216.00922516,0.00027671,2]
[322224264,1712892646579,-500.0,0.00027671,2]
[322224265,1712892646589,-500.0,0.00027671,2]
[322224266,1712892646598,-500.0,0.00027671,2]
[322224267,1712892646608,-921.14,0.00027671,2]
[322224268,1712892646618,-500.0,0.00027671,2]
[322224269,1712892646628,-533.42,0.00027671,2]
[322224270,1712892646637,-500.0,0.00027671,2]
[322224271,1712892646647,-889.97,0.00027671,2]
[322224272,1712892646658,-539.91,0.00027671,2]
[322224273,1712892646667,-1948.01,0.00027671,2]
[322224274,1712892646677,-500.0,0.00027671,2]
[322224275,1712892646686,-500.0,0.00027671,2]
[322224276,1712892646696,-500.0,0.00027671,2]
[322224277,1712892646705,-500.0,0.00027671,2]
[322224278,1712892646714,-594.4,0.00027671,2]
[322224279,1712892646723,-500.0,0.00027671,2]
[322224280,1712892646782,-1981.09,0.00027671,2]
[322224281,1712892646794,-3692.01,0.00027671,2]
[322224282,1712892646804,-2223.91,0.00027671,2]
[322224283,1712892646813,-1749.69,0.00027671,2]
[322224284,1712892646823,-500.0,0.00027671,2]
[322224285,1712892646832,-1092.2,0.00027671,2]
[322224286,1712892646841,-1423.32,0.00027671,2]
[322224287,1712892646852,-500.0,0.00027671,2]
[322224288,1712892646862,-180.44456189,0.00027671,2]
[322224289,1712892646872,-500.0,0.00027671,2]
[322224290,1712892646881,-500.0,0.00027671,2]
[322224291,1712892646891,-500.0,0.00027671,2]
[322224292,1712892646900,-19851.22,0.00027671,2]
[322224293,1712892646909,-1359.39,0.00027671,2]
[322224294,1712892646918,-500.0,0.00027671,2]
[322224295,1712892646928,-500.0,0.00027671,2]
[322224296,1712892646937,-500.0,0.00027671,2]
[322224297,1712892646946,-500.0,0.00027671,2]
[322224298,1712892646955,-3008.33,0.00027671,2]
[322224299,1712892646965,-500.0,0.00027671,2]
[322224300,1712892646974,-774.44,0.00027671,2]
[322224301,1712892646983,-845.07,0.00027671,2]
[322224302,1712892646992,-878.57,0.00027671,2]
[322224303,1712892647001,-500.0,0.00027671,2]
[322224304,1712892647011,-2411.92,0.00027671,2]
[322224305,1712892647021,-1028.23,0.00027671,2]
[322224306,1712892647032,-756.02,0.00027671,2]
[322224307,1712892647042,-500.0,0.00027671,2]
[322224308,1712892647052,-688.0,0.00027671,2]
[322224309,1712892647062,-500.0,0.00027671,2]
[322224310,1712892647071,-500.0,0.00027671,2]
[322224311,1712892647081,-500.0,0.00027671,2]
[322224312,1712892647090,-500.0,0.00027671,2]
[322224313,1712892647098,-1675.04,0.00027671,2]
[322224314,1712892647107,-1317.46,0.00027671,2]
[322224315,1712892647117,-500.0,0.00027671,2]
[322224316,1712892647125,-500.0,0.00027671,2]
[322224317,1712892647134,-5148.49,0.00027671,2]
[322224318,1712892647144,-500.0,0.00027671,2]
[322224319,1712892647153,-500.0,0.00027671,2]
[322224320,1712892647163,-500.0,0.00027671,2]
[322224321,1712892647172,-500.0,0.00027671,2]
[322224322,1712892647181,-546.23,0.00027671,2]
[322224323,1712892647191,-3240.75,0.00027671,2]
[322224324,1712892647200,-500.0,0.00027671,2]
[322224325,1712892647210,-500.0,0.00027671,2]
[322224326,1712892647219,-500.0,0.00027671,2]
[322224327,1712892647228,-500.0,0.00027671,2]
[322224328,1712892647237,-1646.38,0.00027671,2]
[322224329,1712892647246,-500.0,0.00027671,2]
[322224330,1712892647255,-7247.37,0.00027671,2]
[322224331,1712892647264,-515.59,0.00027671,2]
[322224332,1712892647273,-500.0,0.00027671,2]
[322224333,1712892647283,-500.0,0.00027671,2]
[322224334,1712892647292,-500.0,0.00027671,2]
[322224335,1712892647301,-500.0,0.00027671,2]
[322224336,1712892647310,-500.0,0.00027671,2]
[322224337,1712892647319,-500.0,0.00027671,2]
[322224338,1712892647330,-500.0,0.00027671,2]
[322224339,1712892647340,-500.0,0.00027671,2]
[322224340,1712892647349,-500.0,0.00027671,2]
[322224341,1712892647358,-500.0,0.00027671,2]
[322224342,1712892647368,-884.72,0.00027671,2]
[322224343,1712892647378,-1825.72,0.00027671,2]
[322224344,1712892647387,-500.0,0.00027671,2]
[322224345,1712892647396,-500.0,0.00027671,2]
[322224346,1712892647407,-2214.51,0.00027671,2]
[322224347,1712892647416,-500.0,0.00027671,2]
[322224348,1712892647425,-858.42,0.00027671,2]
[322224349,1712892647434,-517.02,0.00027671,2]
[322224350,1712892647443,-2623.92,0.00027671,2]
[322224351,1712892647453,-500.0,0.00027671,2]
[322224352,1712892647461,-500.0,0.00027671,2]
[322224353,1712892647470,-500.0,0.00027671,2]
[322224354,1712892647480,-510.01503213,0.00027671,2]
[322224355,1712892647489,-500.0,0.00027671,2]
[322224356,1712892647499,-664.78,0.00027671,2]
[322224357,1712892647508,-715.87,0.00027671,2]
[322224358,1712892647517,-945.7,0.00027671,2]
[322224359,1712892647529,-1870.1,0.00027671,2]
[322224360,1712892647538,-545.3731644,0.00027671,2]
[322224361,1712892647547,-500.0,0.00027671,2]
[322224362,1712892647557,-500.0,0.00027671,2]
[322224363,1712892647565,-1053.76,0.00027671,2]
[322224364,1712892647574,-500.0,0.00027671,2]
[322224365,1712892647584,-12550.12,0.00027671,2]
[322224366,1712892647593,-1072.78,0.00027671,2]
[322224367,1712892647601,-879.19,0.00027671,2]
[322224368,1712892647610,-500.0,0.00027671,2]
[322224369,1712892647620,-441.16122334,0.00027671,2]
[322224370,1712892647629,-500.0,0.00027671,2]
[322224371,1712892647638,-500.0,0.00027671,2]
[322224372,1712892647647,-500.0,0.00027671,2]
[322224373,1712892647657,-688.61,0.00027671,2]
[322224374,1712892647666,-500.0,0.00027671,2]
[322224375,1712892647675,-2737.05,0.00027671,2]
[322224376,1712892647684,-500.0,0.00027671,2]
[322224377,1712892647693,-500.0,0.00027671,2]
[322224378,1712892647703,-500.0,0.00027671,2]
[322224379,1712892647712,-500.0,0.00027671,2]
[322224380,1712892647721,-1325.19,0.00027671,2]
[322224381,1712892647730,-500.0,0.00027671,2]
[322224382,1712892647739,-856.5,0.00027671,2]
[322224383,1712892647748,-500.0,0.00027671,2]
[322224384,1712892647757,-500.0,0.00027671,2]
[322224385,1712892647766,-3559.32,0.00027671,2]
[322224386,1712892647775,-500.0,0.00027671,2]
[322224387,1712892647785,-500.0,0.00027671,2]
[322224388,1712892647793,-506.16,0.00027671,2]
[322224389,1712892647803,-957.4,0.00027671,2]
[322224390,1712892647811,-500.0,0.00027671,2]
[322224391,1712892647820,-500.0,0.00027671,2]
[322224392,1712892647830,-500.0,0.00027671,2]
[322224393,1712892647839,-292.61722107,0.00027671,2]
[322224394,1712892647848,-3446.51,0.00027671,2]
[322224395,1712892647857,-500.0,0.00027671,2]
[322224396,1712892647866,-2543.53,0.00027671,2]
[322224397,1712892647875,-500.0,0.00027671,2]
[322224398,1712892647885,-2928.69,0.00027671,2]
[322224399,1712892647893,-626.77,0.00027671,2]
[322224400,1712892647903,-500.0,0.00027671,2]
[322224401,1712892647912,-500.0,0.00027671,2]
[322224402,1712892647922,-624.32077105,0.00027671,2]
[322224403,1712892647932,-2405.41,0.00027671,2]
[322224404,1712892647943,-500.0,0.00027671,2]
[322224405,1712892647953,-500.0,0.00027671,2]
[322224406,1712892647962,-1876.02,0.00027671,2]
[322224407,1712892647971,-2205.45,0.00027671,2]
[322224408,1712892647981,-230.0,0.00027671,2]
[322224409,1712892647990,-588.82,0.00027671,2]
[322224410,1712892647999,-2181.84,0.00027671,2]
[322224411,1712892648008,-1966.37,0.00027671,2]
[322224412,1712892648018,-1041.6,0.00027671,2]
[322224413,1712892648029,-1630.16,0.00027671,2]
[322224414,1712892648039,-1723.55,0.00027671,2]
[322224415,1712892648051,-567.90665846,0.00027671,2]
[322224416,1712892648060,-500.0,0.00027671,2]
[322224417,1712892648069,-500.0,0.00027671,2]
[322224418,1712892648078,-500.0,0.00027671,2]
[322224419,1712892648087,-500.0,0.00027671,2]
[322224420,1712892648096,-1170.95,0.00027671,2]
[322224421,1712892648105,-1058.68,0.00027671,2]
[322224422,1712892648115,-500.0,0.00027671,2]
[322224423,1712892648124,-500.0,0.00027671,2]
[322224424,1712892648133,-561.49,0.00027671,2]
[322224425,1712892648142,-8557.66,0.00027671,2]
[322224426,1712892648151,-2521.06,0.00027671,2]
[322224427,1712892648162,-527.95,0.00027671,2]
[322224428,1712892648171,-4932.73824406,0.00027845,2]
[322224429,1712892648181,-157.18489302,0.00027845,2]
[322224430,1712892648189,-169.47320593,0.00027845,2]
[322224431,1712892648199,-512.0,0.00027857,2]
[322224432,1712892648210,-150.0,0.000279,2]
[322224433,1712892648219,-483.98320613,0.00027902,2]
[322224434,1712892648228,-321.0,0.00027945,5]
[322224435,1712892648237,-500.0,0.00027945,2]
[322224436,1712892648246,-500.0,0.00027945,2]
[322224437,1712892648255,-500.0,0.00027945,2]
[322224438,1712892648265,-500.0,0.00027945,2]
[322224439,1712892648275,-500.0,0.00027945,2]
[322224440,1712892648284,-500.0,0.00027945,2]
[322224441,1712892648294,-500.0,0.00027945,2]
[322224442,1712892648303,-500.0,0.00027945,2]
[322224443,1712892648312,-500.0,0.00027945,2]
[322224444,1712892648321,-302.44204714,0.00027945,2]
[322224445,1712892648334,-500.0,0.00027945,2]
[322224446,1712892648345,-500.0,0.00027945,2]
[322224447,1712892648355,-500.0,0.00027945,2]
[322224448,1712892648365,-335.1270141,0.00027945,2]
[322224449,1712892648374,-500.0,0.00027945,2]
[322224450,1712892648384,-500.0,0.00027945,2]
[322224451,1712892648394,-500.0,0.00027945,2]
[322224452,1712892648403,-470.61377716,0.00027945,2]
[322224453,1712892648414,-500.0,0.00027945,2]
[322224454,1712892648424,-246.81039736,0.00027945,2]
[322224455,1712892648433,-500.0,0.00027945,2]
[322224456,1712892648442,-500.0,0.00027945,2]
[322224457,1712892648451,-500.0,0.00027945,2]
[322224458,1712892648460,-500.0,0.00027945,2]
[322224459,1712892648469,-500.0,0.00027945,2]
[322224460,1712892648478,-166.75842589,0.00027945,2]
[322224461,1712892648487,-500.0,0.00027945,2]
[322224462,1712892648497,-500.0,0.00027945,2]
[322224463,1712892648507,-500.0,0.00027945,2]
[322224464,1712892648516,-225.69,0.00027945,2]
[322224465,1712892648527,-500.0,0.00027945,2]
[322224466,1712892648536,-500.0,0.00027945,2]
[322224467,1712892648546,-500.0,0.00027945,2]
[322224468,1712892648555,-500.0,0.00027945,2]
[322224469,1712892648564,-398.3,0.00027945,2]
[322224470,1712892648573,-568.15019287,0.00027945,2]
[322224471,1712892648583,-396.68,0.00027945,2]
[322224472,1712892648592,-249.17,0.00027945,2]
[322224473,1712892648601,-167.30748,0.00027945,7]
[322224474,1712892648611,-167.30748,0.00027945,7]
[322224475,1712892648620,-167.30748,0.00027945,7]
[322224476,1712892648630,-500.0,0.00027945,2]
[322224477,1712892648639,-167.30748,0.00027945,7]
[322224478,1712892648648,-167.30748,0.00027945,7]
[322224479,1712892648657,-167.30748,0.00027945,7]
[322224480,1712892648666,-500.0,0.00027945,2]
[322224481,1712892648676,-500.0,0.00027945,2]
[322224482,1712892648685,-500.0,0.00027945,2]
[322224483,1712892648694,-500.0,0.00027945,2]
[322224484,1712892648704,-610.82568642,0.00027945,2]
[322224485,1712892648713,-500.0,0.00027945,2]
[322224486,1712892648722,-602.6,0.00027945,2]
[322224487,1712892648731,-500.0,0.00027945,2]
[322224488,1712892648741,-500.0,0.00027945,2]
[322224489,1712892648750,-500.0,0.00027945,2]
[322224490,1712892648759,-500.0,0.00027945,2]
[322224491,1712892648769,-500.0,0.00027945,2]
[322224492,1712892648779,-500.0,0.00027945,2]
[322224493,1712892648788,-500.0,0.00027945,2]
[322224494,1712892648797,-633.68,0.00027945,2]
[322224495,1712892648806,-500.0,0.00027945,2]
[322224496,1712892648817,-500.0,0.00027945,2]
[322224497,1712892648826,-500.0,0.00027945,2]
[322224498,1712892648836,-500.0,0.00027945,2]
[322224499,1712892648846,-500.0,0.00027945,2]
[322224500,1712892648856,-500.0,0.00027945,2]
[322224501,1712892648866,-1745.75,0.00027945,2]
[322224502,1712892648876,-500.0,0.00027945,2]
[322224503,1712892648886,-500.0,0.00027945,2]
[322224504,1712892648896,-500.0,0.00027945,2]
[322224505,1712892648906,-500.0,0.00027945,2]
[322224506,1712892648916,-500.0,0.00027945,2]
[322224507,1712892648926,-500.0,0.00027945,2]
[322224508,1712892648936,-500.0,0.00027945,2]
[322224509,1712892648945,-500.0,0.00027945,2]
[322224510,1712892648955,-500.0,0.00027945,2]
[322224511,1712892648964,-360.13447423,0.00027945,2]
[322224512,1712892648974,-500.0,0.00027945,2]
[322224513,1712892648984,-500.0,0.00027945,2]
[322224514,1712892648994,-500.0,0.00027945,2]
[322224515,1712892649004,-500.0,0.00027945,2]
[322224516,1712892649014,-500.0,0.00027945,2]
[322224517,1712892649024,-500.0,0.00027945,2]
[322224518,1712892649034,-500.0,0.00027945,2]
[322224519,1712892649044,-500.0,0.00027945,2]
[322224520,1712892649054,-500.0,0.00027945,2]
[322224521,1712892649063,-500.0,0.00027945,2]
[322224522,1712892649073,-258.532627,0.00027945,2]
[322224523,1712892649083,-500.0,0.00027945,2]
[322224524,1712892649093,-261.38772515,0.00027945,2]
[322224525,1712892649102,-500.0,0.00027945,2]
[322224526,1712892649112,-500.0,0.00027945,2]
[322224527,1712892649122,-500.0,0.00027945,2]
[322224528,1712892649132,-564.06,0.00027945,2]
[322224529,1712892649142,-150.0,0.00027945,2]
[322224530,1712892649151,-594.58333149,0.00027945,2]
[322224531,1712892649161,-500.0,0.00027945,2]
[322224532,1712892649171,-500.0,0.00027945,2]
[322224533,1712892649181,-500.0,0.00027945,2]
[322224534,1712892649190,-500.0,0.00027945,2]
[322224535,1712892649200,-500.0,0.00027945,2]
[322224536,1712892649209,-500.0,0.00027945,2]
[322224537,1712892649219,-1022.99,0.00027945,2]
[322224538,1712892649229,-500.0,0.00027945,2]
[322224539,1712892649239,-500.0,0.00027945,2]
[322224540,1712892649249,-500.0,0.00027945,2]
[322224541,1712892649258,-500.0,0.00027945,2]
[322224542,1712892649268,-500.0,0.00027945,2]
[322224543,1712892649279,-500.0,0.00027945,2]
[322224544,1712892649288,-500.0,0.00027945,2]
[322224545,1712892649297,-1427.79,0.00027945,2]
[322224546,1712892649307,-500.0,0.00027945,2]
[322224547,1712892649316,-500.0,0.00027945,2]
[322224548,1712892649326,-578.01764292,0.00027945,2]
[322224549,1712892649340,-500.0,0.00027945,2]
[322224550,1712892649350,-629.99972457,0.00027945,2]
[322224551,1712892649359,-500.0,0.00027945,2]
[322224552,1712892649369,-500.0,0.00027945,2]
[322224553,1712892649380,-386.91438258,0.00027945,2]
[322224554,1712892649390,-500.0,0.00027945,2]
[322224555,1712892649399,-500.0,0.00027945,2]
[322224556,1712892649409,-500.0,0.00027945,2]
[322224557,1712892649419,-409.13753419,0.00027945,2]
[322224558,1712892649428,-500.0,0.00027945,2]
[322224559,1712892649437,-215.92180186,0.00027945,2]
[322224560,1712892649447,-500.0,0.00027945,2]
[322224561,1712892649456,-608.35090386,0.00027945,2]
[322224562,1712892649466,-500.0,0.00027945,2]
[322224563,1712892649476,-500.0,0.00027945,2]
[322224564,1712892649485,-712.25,0.00027945,2]
[322224565,1712892649494,-500.0,0.00027945,2]
[322224566,1712892649504,-699.3,0.00027945,2]
[322224567,1712892649513,-500.0,0.00027945,2]
[322224568,1712892649523,-1324.5,0.00027945,2]
[322224569,1712892649533,-500.0,0.00027945,2]
[322224570,1712892649542,-500.0,0.00027945,2]
[322224571,1712892649552,-258.65377792,0.00027945,2]
[322224572,1712892649564,-3621.42,0.00027945,2]
[322224573,1712892649573,-500.0,0.00027945,2]
[322224574,1712892649583,-326.65586922,0.00027945,2]
[322224575,1712892649593,-500.0,0.00027945,2]
[322224576,1712892649602,-500.0,0.00027945,2]
[322224577,1712892649612,-500.0,0.00027945,2]
[322224578,1712892649621,-500.0,0.00027945,2]
[322224579,1712892649630,-500.0,0.00027945,2]
[322224580,1712892649641,-500.0,0.00027945,2]
[322224581,1712892649651,-500.0,0.00027945,2]
[322224582,1712892649661,-500.0,0.00027945,2]
[322224583,1712892649671,-500.0,0.00027945,2]
[322224584,1712892649680,-250.07381864,0.00027945,2]
[322224585,1712892649690,-500.0,0.00027945,2]
[322224586,1712892649700,-500.0,0.00027945,2]
[322224587,1712892649709,-500.0,0.00027945,2]
[322224588,1712892649720,-500.0,0.00027945,2]
[322224589,1712892649732,-500.0,0.00027945,2]
[322224590,1712892649742,-500.0,0.00027945,2]
[322224591,1712892649752,-866.78,0.00027945,2]
[322224592,1712892649762,-500.0,0.00027945,2]
[322224593,1712892649771,-500.0,0.00027945,2]
[322224594,1712892649781,-478.48745357,0.00027945,2]
[322224595,1712892649790,-921.14,0.00027945,2]
[322224596,1712892649801,-500.0,0.00027945,2]
[322224597,1712892649812,-533.42,0.00027945,2]
[322224598,1712892649822,-500.0,0.00027945,2]
[322224599,1712892649832,-889.97,0.00027945,2]
[322224600,1712892649842,-539.91,0.00027945,2]
[322224601,1712892649851,-1948.01,0.00027945,2]
[322224602,1712892649862,-500.0,0.00027945,2]
[322224603,1712892649872,-500.0,0.00027945,2]
[322224604,1712892649881,-500.0,0.00027945,2]
[322224605,1712892649891,-169.35627441,0.00027945,2]
[322224606,1712892649900,-594.4,0.00027945,2]
[322224607,1712892649910,-500.0,0.00027945,2]
[322224608,1712892649920,-1981.09,0.00027945,2]
[322224609,1712892649930,-3692.01,0.00027945,2]
[322224610,1712892649940,-2223.91,0.00027945,2]
[322224611,1712892649950,-1749.69,0.00027945,2]
[322224612,1712892649959,-500.0,0.00027945,2]
[322224613,1712892649969,-1092.2,0.00027945,2]
[322224614,1712892649979,-1423.32,0.00027945,2]
[322224615,1712892649988,-500.0,0.00027945,2]
[322224616,1712892649997,-500.0,0.00027945,2]
[322224617,1712892650007,-500.0,0.00027945,2]
[322224618,1712892650017,-500.0,0.00027945,2]
[322224619,1712892650026,-19851.22,0.00027945,2]
[322224620,1712892650036,-1359.39,0.00027945,2]
[322224621,1712892650046,-500.0,0.00027945,2]